Workbook

Sheet Sheet1
E1: species | F1: Body Weight | G1: Brain Volume | H1: D1 | I1: D2
E2: 1 H. neanderthalensis | F2: 80 | G2: 1500 | H2: 1 | I2: 0
E3: 2 H. sapiens | F3: 55 | G3: 1300 | H3: 1 | I3: 0
E4: 3 H. erectus | F4: 50 | G4: 1000 | H4: 1 | I4: 0
E5: 4 H. habilis | F5: 40 | G5: 600 | H5: 1 | I5: 0
E6: 5 A. robustus | F6: 50 | G6: 500 | H6: 0 | I6: 0
E7: 6 A. boisei | F7: 60 | G7: 450 | H7: 0 | I7: 0
E8: 7 A. africanus | F8: 30 | G8: 400 | H8: 0 | I8: 0
E9: 8 Bonobo | F9: 45 | G9: 300 | H9: 0 | I9: 1
E10: 9 Orang | F10: 55 | G10: 400 | H10: 0 | I10: 1
E11: 10 Chimpanzee | F11: 85 | G11: 350 | H11: 0 | I11: 1
E12: 11 Gorilla | F12: 190 | G12: 550 | H12: 0 | I12: 1
A14: Input No | E14: 12 Fossil 1 | F14: 70 | G14: 600 | H14: 0 | I14: 0
A15: =RANDBETWEEN(1,11) -> 9 | E15: 13 Fossil 2 | F15: 80 | G15: 1400 | H15: 0 | I15: 0
E16: 14 Fossil 3 | F16: 10 | G16: 400 | H16: 0 | I16: 0
A17: lrate | E17: 15 Fossil 4 | F17: 80 | G17: 500 | H17: 0 | I17: 0
A18: 0.0001 | E18: 16 Fossil 5 | F18: 20 | G18: 100 | H18: 0 | I18: 0
B19: body weight | D19: brain vol.
A20: inputs | B20: =CHOOSE(A15,F2,F3,F4,F5,F6,F7,F8,F9,F10,F11,F12,F14,F15,F16,F17,F18) -> 55 | D20: =CHOOSE(A15,G2,G3,G4,G5,G6,G7,G8,G9,G10,G11,G12,G14,G15,G16,G17,G18) -> 400
A21: weights | B21: =IF(ISNUMBER(B29),B29,RANDBETWEEN(-10,10)) -> -4.175 | D21: =IF(ISNUMBER(D29),D29,RANDBETWEEN(-10,10)) -> 0.3 | E21: =IF(ISNUMBER(E29),E29,RANDBETWEEN(-10,10)) -> 5.3595 | G21: =IF(ISNUMBER(G29),G29,RANDBETWEEN(-10,10)) -> -0.945 | J21: Below is for the plot
A22: activation | C22: =SUM(B20*B21+D20*D21) -> -109.625 | F22: =B20*E21+D20*G21 -> -83.2275 | J22: x | K22: y1 | L22: y2
A23: threshold | C23: 1 | D23: 1 | F23: -100 | J23: 1 | K23: =(-$B$21/$D$21)*J23+($C$23/$D$21) -> 17.25 | L23: =(-$E$21/$G$21)*J23+($F$23/$G$21) -> 111.4915344
A24: output | C24: =IF(C22>=C23,1,0) -> 0 | F24: =IF(F22>=F23,1,0) -> 1 | J24: 200 | K24: =(-$B$21/$D$21)*J24+($C$23/$D$21) -> 2786.666667 | L24: =(-$E$21/$G$21)*J24+($F$23/$G$21) -> 1240.10582
A26: desired | C26: =CHOOSE(A15,H2,H3,H4,H5,H6,H7,H8,H9,H10,H11,H12,H14,H15,H16,H17,H18) -> 0 | F26: =CHOOSE(A15,I2,I3,I4,I5,I6,I7,I8,I9,I10,I11,I12,I14,I15,I16,I17,I18) -> 1 | K26: =K23-20 -> -2.75 | L26: =L23+20 -> 131.4915344
A27: error | C27: =C26-C24 -> 0 | D27: 1 | F27: =F26-F24 -> 0 | K27: =K24-20 -> 2766.666667 | L27: =L24+20 -> 1260.10582
A28: deltaW | B28: =C27*A18*B20 -> 0 | D28: =A18*C27*D20 -> 0 | E28: =F27*A18*B20 -> 0 | G28: =A18*F27*D20 -> 0
A29: new Weights | B29: =B21+B28 -> -4.175 | D29: =D21+D28 -> 0.3 | E29: =E21+E28 -> 5.3595 | G29: =G21+G28 -> -0.945
B31: neuron 1 seperates homos from all others
B32: neuron 2 seperates apes from all others
D34: Network says it's
D35: =IF(AND(C24=1,F24=0),"a homo",IF(AND(C24=0,F24=0),"an australopithecine",IF(AND(C24=0,F24=1),"an ape","unknown"))) -> an ape

Sheet Sheet2

Sheet Sheet3
